Cogmind - Beta 17 @@@ ROGUE MODE // 2026.08.06 @ 15:15:06 Player: Stevano Result: Destroyed by Y-45 Defender with Beam Rifle Performance ------------- Evolutions (1) 500 Regions Visited (2) 400 Robots Destroyed (25) 125 Value Destroyed (703) 703 Prototype IDs (1) 20 Alien Tech Used (0) 0 Bonus (0) 0 TOTAL SCORE: 1748 Bonus ------- None Cogmind --------- Core Integrity 0/400 Matter 235/300 Energy 85/100 System Corruption 0% Temperature Cool (9) Movement Core (250) Ox4 Location -9/Materials Parts ------- > --- POWER (1) -------- (None) > --- PROPULSION (2) --- (None) > --- UTILITY (4) ------ Medium Storage Unit Utility Shielding > --- WEAPON (2) ------- Mace > --- INVENTORY (10) --- Heat Sink Heat Sink Small Storage Unit Medium Storage Unit Targeting Computer Beam Rifle Peak State ------------ > --- POWER ------------ Improved Ion Engine > --- PROPULSION ------- Aluminum Leg Aluminum Leg > --- UTILITY ---------- Medium Storage Unit Terrain Scanner Utility Shielding Medium Armor Plating > --- WEAPON ----------- Particle Cannon Particle Cannon > --- INVENTORY -------- Heat Sink Heat Sink Small Storage Unit Medium Storage Unit Light Armor Plating Medium Armor Plating Improved EM Shotgun Beam Rifle Grenade Launcher [Rating: 14] Favorites ----------- Power Light Ion Engine Engine Light Ion Engine Propulsion Aluminum Leg Leg Aluminum Leg Utility Terrain Scanner Device Terrain Scanner Storage Medium Storage Unit Protection Utility Shielding Weapon Particle Cannon Energy Gun EM Pulse Gun Energy Cannon Particle Cannon Ballistic Gun Light Assault Rifle Launcher Grenade Launcher Impact Weapon Mace Build | -11 -10 -9 ------- Run | Yrd Mat Mat Slots Evolved 2 | . . 2 Power . | . . . Propulsion . | . . . Utility 2 | . . 2 Weapon . | . . . Parts Attached 25 | 5 10 10 Power 4 | 1 1 2 Engine 4 | 1 1 2 Core . | . . . Reactor . | . . . Propulsion 6 | 2 3 1 Treads . | . . . Leg 6 | 2 3 1 Wheel . | . . . Hover . | . . . Flight . | . . . Utility 6 | . 3 3 Device 1 | . 1 . Storage 1 | . 1 . Processor . | . . . Hackware . | . . . Protection 4 | . 1 3 Artifact . | . . . Weapon 9 | 2 3 4 Energy Gun 3 | 1 . 2 Energy Cannon 2 | . 2 . Ballistic Gun 2 | 1 1 . Ballistic Cannon . | . . . Launcher 1 | . . 1 Special Weapon . | . . . Impact Weapon 1 | . . 1 Slashing Weapon . | . . . Piercing Weapon . | . . . Special Melee Weapon . | . . . Unidentified Prototypes 1 | . . 1 Parts Lost 13 | . 2 11 Power 3 | . 2 1 Propulsion 2 | . . 2 Utility 4 | . . 4 Weapon 4 | . . 4 Highest Loss Streak 11 | . 1 11 To Critical Strikes . | . . . Average Backups 7 | 2 6 8 Power . | . . . Propulsion . | 1 . . Utility 4 | . 3 6 Weapon 1 | . 1 2 Tool/Special . | . . . Unused Backups 7 | . 2 5 Power . | . . . Propulsion 2 | . 2 . Utility 5 | . . 5 Weapon . | . . . Tool/Special . | . . . Average Slot Usage (%) 88 | . 89 88 Engine 7 | . 7 7 Leg 24 | . 27 20 Device 11 | . 11 10 Storage 9 | . 8 11 Protection 10 | . 3 17 Energy Cannon 11 | . 4 19 Ballistic Gun 11 | . 22 . Peak Build Rating 14 | 5 9 14 Average Rating 9 | 3 7 11 On Entrance 4 | . 5 9 Avg Prop Armor Cover (%) . | . . . Naked Turns . | . . . Heaviest Build 34 | 6 19 34 Greatest Support 20 | 20 20 20 Greatest Overweight (x) 5 | . . 5 Average Overweight (x) . | . . . Largest Inventory Capacity 10 | 5 10 10 Average Capacity 8 | 5 7 10 Most Carried 10 | 5 10 10 Average Carried 7 | 2 6 9 Final Capacity 10 | 5 10 10 Final Carried 8 | 4 8 6 Class Distribution -------------------- 100% | Mutant Dominant Class ---------------- Mutant | -10/Materials Mutant | -9/Materials Resources | -11 -10 -9 ----------- Run | Yrd Mat Mat Matter Collected 528 | 263 135 130 Remotely . | . . . Salvage Created 839 | 48 312 479 Parts 51 | 1 25 25 Haulers Intercepted . | . . . Recyclers Shooed . | . . . Parts Field Recycled . | . . . Retrieved Matter . | . . . Parts Self-Destructed . | . . . Prevented . | . . . Parts Restored . | . . . Kills | -11 -10 -9 ------- Run | Yrd Mat Mat Combat Hostiles Destroyed 23 | 1 12 10 Melee 1 | . . 1 Guns 13 | 1 11 1 Cannons 8 | . 1 7 AOE 1 | . . 1 Classes Destroyed 6 | 1 2 3 Operator 1 | . . 1 Watcher 1 | . 1 . Swarmer 7 | . 7 . Grunt 13 | 1 5 7 Brawler 1 | . . 1 Sentry 2 | . . 2 Best Kill Streak 4 | 1 4 3 Combat Bots Only 4 | 1 4 3 Max Kills in Single Turn 1 | 1 1 1 Gunslinging . | . . . Exploded 1 | . . 1 Melee 1 | . . 1 Uniques/NPCs Destroyed . | . . . Combat | -11 -10 -9 -------- Run | Yrd Mat Mat Hostile Shots Fired 269 | 8 101 160 Missed 80 | 6 35 39 Hits 189 | 2 66 121 Melee 1 | . . 1 Projectile 188 | 2 66 120 Critical Strikes 6 | . . 6 Damage Taken 2220 | 21 601 1598 Core 560 | 10 137 413 Absorbed by Shields . | . . . Redirected to Shielding 26 | . . 26 Regen/Repaired (Parts) 62 | . . 62 Core Remaining (%) 68 | 96 41 . Volleys Fired 81 | 4 42 35 Largest 2 | 2 2 2 Hottest 136 | 60 136 136 Shots Fired 146 | 8 84 54 Gun 94 | 8 80 6 Cannon 48 | . 4 44 Launcher 4 | . . 4 Special . | . . . Kinetic 73 | 4 69 . Thermal 49 | . 4 45 Explosive 4 | . . 4 Electromagnetic 20 | 4 11 5 Robot Hit Streak 9 | 4 6 9 Robot Miss Streak 5 | 1 5 2 Penetration Max . | . . . Secondary Targets 3 | . 3 . Max Gunslinging Chain 1 | . 1 . Shots Hit Robots 91 | 6 47 38 Core Hits 42 | 2 25 15 Critical Kills 1 | . . 1 Critical Parts Destroyed . | . . . Critical Strikes 2 | . 1 1 Corrupt 1 | . 1 . Smash 1 | . . 1 Melee Attacks 1 | . . 1 Impact 1 | . . 1 Slashing . | . . . Piercing . | . . . Sneak Attacks . | . . . Combat Hostiles . | . . . Follow-up Attacks . | . . . Damage Inflicted 1419 | 63 494 862 Guns 605 | 63 452 90 Cannons 695 | . 42 653 Explosions 83 | . . 83 Melee 36 | . . 36 Ramming . | . . . Kinetic 373 | 25 348 . Thermal 695 | . 42 653 Explosive 83 | . . 83 Electromagnetic 232 | 38 104 90 Impact 36 | . . 36 Slashing . | . . . Piercing . | . . . Highest Corruption 3 | . 3 . Average Corruption 1 | . 1 . Corruption Purged . | . . . Corruption Blocked . | . . . Effects 7 | . 7 . Message Errors 1 | . 1 . Matter Fused 1 | . 1 . Heat Flow Errors 2 | . 2 . Parts Fused 2 | . 2 . Data Loss (major) 1 | . 1 . Overload Shots . | . . . Overflow Damage 19 | . . 19 Projectiles 19 | . . 19 Explosions . | . . . Melee . | . . . Knockbacks . | . . . Impact . | . . . Kinetic . | . . . Secondary . | . . . Self-Inflicted Damage . | . . . Shots . | . . . Rammed . | . . . Targets Rammed . | . . . Kicked . | . . . Crushed . | . . . Highest Temperature 455 | 46 273 455 Average Temperature 156 | 18 85 196 Received Heat Transfer 1026 | 12 156 858 Effects 6 | . . 6 Energy Bleed 3 | . . 3 Matter Decay 1 | . . 1 Short Circuit 2 | . . 2 Siege Activations . | . . . Martial Activations . | . . . Shielding Activations . | . . . Robots Disrupted . | . . . Combat Hostiles . | . . . Robots Corrupted . | . . . Combat Hostiles . | . . . Parts Fried . | . . . Impact Corruptions . | . . . Robots Melted . | . . . Combat Hostiles . | . . . Parts Melted . | . . . Heat Transferred 1258 | . 74 1184 Parts Sabotaged . | . . . Parts Stolen . | . . . Parts Stripped . | . . . Power Chain Reactions . | . . . Alert | -11 -10 -9 ------- Run | Yrd Mat Mat Maximum Alert Level . | . . . Low Security (%) 100 | 100 100 100 Level 1 . | . . . Level 2 . | . . . Level 3 . | . . . Level 4 . | . . . Level 5 . | . . . High Security . | . . . Max Security . | . . . Peak Influence 91 | 20 91 82 Initial 13 | . 13 . Average 23 | 1 29 21 Influence Increases 636 | 20 280 336 Destroy 0b10 Robot/C 460 | 20 240 200 Destroy 0b10 Robot/NC 10 | . 5 5 Destroy Leader 72 | . 32 40 Successful Hack 9 | . 3 6 Disable Machine 30 | . . 30 Destroy Structure 25 | . . 25 Lose Combat Pursuer 30 | . . 30 Influence Decreases 616 | . 300 316 Entered New Map 7 | . 7 . Time Decay 506 | . 290 216 Lost Part 103 | . 3 100 Squads Dispatched 1 | . 1 . Investigation . | . . . Extermination . | . . . Reinforcement 1 | . 1 . Assault . | . . . Garrison . | . . . Intercept . | . . . Searches Triggered . | . . . Construction Impeded . | . . . Haulers Reinforced . | . . . Active Scanning Responses . | . . . Cargo Convoy Interrupts . | . . . Stealth | -11 -10 -9 --------- Run | Yrd Mat Mat Distress Signals 1 | . 1 . Communications Jammed . | . . . Distress Signals . | . . . Times Spotted 33 | 1 17 15 Peak Tracking Total 7 | 1 5 7 Tactical Retreats 2 | . . 2 Traps | -11 -10 -9 ------- Run | Yrd Mat Mat Traps Triggered 2 | . 2 . Indirectly . | . . . Trap Hack Attempts . | . . . Triggered . | . . . Disarmed . | . . . Reprogrammed . | . . . Reused . | . . . Traps Extracted . | . . . Installed . | . . . Triggered . | . . . Machines | -11 -10 -9 ---------- Run | Yrd Mat Mat Machines Disabled 2 | . . 2 Max in Single Turn 1 | . . 1 Machines Repaired . | . . . Machines Dismantled . | . . . Machines Sabotaged . | . . . Overloaded Fab Kills . | . . . Hacking | -11 -10 -9 --------- Run | Yrd Mat Mat Machines Accessed 7 | . 4 3 Terminals 4 | . 2 2 Fabricators . | . . . Repair Stations 1 | . . 1 Recycling Units 2 | . 2 . Scanalyzers . | . . . Garrison Access . | . . . Total Hacks 20 | . 12 8 Successful 16 | . 11 5 Failed 4 | . 1 3 Catastrophic . | . . . Database Lockouts . | . . . Manual . | . . . Terminals 11 | . 6 5 Fabricators . | . . . Repair Stations 3 | . . 3 Recycling Units 6 | . 6 . Scanalyzers . | . . . Garrison Access . | . . . Terminal Hacks 8 | . 5 3 Record 6 | . 4 2 Robot Analysis 1 | . . 1 Dispatch Records 1 | . 1 . Fabricator Hacks . | . . . Repair Station Hacks 2 | . . 2 Scan Component 1 | . . 1 Repair 1 | . . 1 Recycling Unit Hacks 6 | . 6 . Recycle Component 2 | . 2 . Report Inventory 4 | . 4 . Scanalyzer . | . . . Garrison Access Hacks . | . . . Unauthorized Hacks . | . . . Terminals . | . . . Fabricators . | . . . Repair Stations . | . . . Recycling Units . | . . . Scanalyzers . | . . . Garrison Access . | . . . Data Cores Recovered 1 | . . 1 Used . | . . . Hacking Detections 5 | . 2 3 Full Trace Events 2 | . 2 . Feedback Events . | . . . Feedback Blocked . | . . . Robot Schematics Acquired . | . . . Robots Built . | . . . Authchips . | . . . Time . | . . . Total Robot Build Rating . | . . . Part Schematics Acquired . | . . . Parts Built . | . . . Authchips . | . . . Time . | . . . Total Part Build Rating . | . . . Part Studies Acquired . | . . . Parts Repaired 1 | . . 1 Time 32 | . . 32 Parts Recycled 2 | . 2 . Recycled Matter . | . . . Retrieved Matter . | . . . Retrieved Components . | . . . Parts Scanalyzed . | . . . Part Schematics Acquired . | . . . Parts Damaged . | . . . Bothacking | -11 -10 -9 ------------ Run | Yrd Mat Mat Used RIF Installer . | . . . Robots Hacked . | . . . Non-combat . | . . . Combat . | . . . Robot Hacks Applied . | . . . Relay Couplers Released . | . . . Fabnet Peak Effective % . | . . . Robots Rewired . | . . . Allies Hacked . | . . . Hacks Repelled . | . . . Allies | -11 -10 -9 -------- Run | Yrd Mat Mat Total Allies . | . . . Largest Group . | . . . Highest-Rated Group . | . . . Highest-Rated Ally . | . . . Total Orders . | . . . Ally Attacks . | . . . Total Damage . | . . . Kills . | . . . Allies Corrupted . | . . . Allies Melted . | . . . Intel | -11 -10 -9 ------- Run | Yrd Mat Mat Active Infowar (turns) 1466 | . 718 748 Terrain 1466 | . 718 748 Robot Analysis Total 1 | . . 1 Derelict Logs Recovered . | . . . Drone Launches . | . . . Drone Recoveries . | . . . Exploration | -11 -10 -9 ------------- Run | Yrd Mat Mat Turns Passed 1748 | 111 838 799 Spaces Moved 977 | 84 563 330 Core 30 | 21 . 9 Treads . | . . . Legs 947 | 63 563 321 Wheels . | . . . Hover . | . . . Flight . | . . . Fastest Speed 50 | 50 120 120 Average Speed 138 | 102 120 178 Slowest Speed 300 | 120 120 300 Overloaded Moves . | . . . Propulsion Burnouts . | . . . Robots Hopped . | . . . Potential Cave-ins . | . . . Cave-ins Triggered . | . . . Exploration Rate (%) 32 | 5 56 35 Regions Visited 2 Branch Regions . Pre-discovered Areas . | . . . Known Exits Taken . | . . . Unknown Exits Taken 2 | 1 1 . Scrap Searched . | . . . Spaces Dug . | . . . Terrain Destroyed 33 | . . 33 Melee . | . . . Projectile . | . . . AOE 33 | . . 33 Terrain Rammed . | . . . Walls Destroyed . | . . . Machines Disabled . | . . . Actions | -11 -10 -9 --------- Run | Yrd Mat Mat Total 1244 | 101 656 487 Wait 111 | . 16 95 Move 975 | 83 562 330 Hop . | . . . Pick Up 35 | 7 17 11 Fast Attach 2 | 2 . . Attach 18 | 4 4 10 Detach 2 | 1 1 . Swap 8 | . 6 2 Drop 11 | . 8 3 Fire 81 | 4 42 35 Melee 1 | . . 1 Ram . | . . . Kick . | . . . Crush . | . . . Escape Stasis . | . . . Rewire . | . . . Trap . | . . . Miscellaneous . | . . . Route ------- -11/Scrapyard -10/Materials -9/Materials (discovered 1 exit: [*Mat]) History --------- Turn | Location | Event 2 | -11/Scrapyard | Met Revision 17 77 | -11/Scrapyard | Discovered new exit (range 8) 112 | -11/Scrapyard | Entered Materials 310 | -10/Materials | Build established: Mutant 631 | -10/Materials | Discovered new exit (range 16) 652 | -10/Materials | Core integrity fell below 50% 950 | -10/Materials | Entered another Materials area 950 | -9/Materials | Evolved 2 slots: Utility x2 1290 | -9/Materials | Repaired Particle Cannon 1518 | -9/Materials | Discovered new exit (range 7) 1703 | -9/Materials | Core integrity fell below 50% 1740 | -9/Materials | Core integrity fell below 20% 1749 | -9/Materials | Destroyed by Y-45 Defender with Beam Rifle Last Messages --------------- 01714_ R-06 Scavenger collects Corrupted Sml. Laser. 01717_ Lgt. Armor Plating destroyed. 01717_ R-06 Scavenger collects Corrupted Heat Sink. 01725_ Imp. EM Shotgun destroyed. 01733_ G-34 Mercenary IFF system glitched. 01737_ G-34 Mercenary misfires. 01738_ U-05 Engineer builds a Wall. 01741_ G-34 Mercenary misfires. 01742_ U-05 Engineer lays Concrete. 01743_ Critical hit (Burn: +37). 01746_ Acquired Mace. 01746_ Med. Armor Plating destroyed. 01746_ Critical hit (Burn: +37). Bump into an enemy to attack with the active melee weapon. Even while active, melee weapons do not fire together with ranged weapons in the same volley. 01748_ G-34 Mercenary suffers critical hit (Smash). 01748_ G-34 Mercenary destroyed. 01749_ The unstable cave ceiling collapses. [Achievement: First Step to Greatness] Map ----- +----------------------------------------------------+ | ??????## """ # # ?????????? | | ?????########## #? ?????????? | | ?????# = # #???????????? | | ?????# """ # #???????????? | | #???## """ + " # ??????????? | | ?????# """ ] # """ #???????????? | | ?????# # """ #???????????? | | ?????# """ "" # """ #???????????? | | ?????# """ T" # "" #???????????? | | ?????# """ "" # """ #???????????? | | ?????# # "" #??? ???????? | | ?????########## """ #????? ?????? | | ??????????????# " #???????????? | | ???????###?#??# #???????????? | | ??????????????# #???????????? | | ??????????????####### ###???????????? | | ?????????#???#??#??## #??#+##+#####?? | | ?????????#???#??????# ### | | ?????#??????##????#?# | | ???????#???????###### | | ???????######### ## ! | | ???????# ## ## % ? | | # ?????#"" ## ## * ? | | # # ##"YY ## ## ? | | # " g ## ## #############?? | | ## %[ !%@#? ?# #?????????????? | | # # =%*## ## ##????????????? | | #/#########+####/## #????????????? | | ???????# = #????????????? | | ???????# T + """ ???????? | | ???????/ ##+####### # """????????? | | ?????? # ? ????####### ???????? | | ??? ? ]# ?[ ???????????? ??????? | | ??? ?###? ????????????#####?????? | | ???##?????? !?? ????????????????????? | | ?????#????? ? ???#?????#???????????? | | ????????#?? ???????????#???????????? | | ???????????###???????????????????????? | | ?????????????????#???????????????????? | | ?????????#???????????????????????????? | | ????????????#????????????????????????? | | ?????????????????????????????????????? | | ?????????????????????????????????????? | | ?????????????????????????????????????? | | ?????????????????????????????????????? | | ?????????????????????????????????????? | | | | | | | | | +----------------------------------------------------+ Best States ------------- Heat Dissipation 28 Energy Generation 12 Energy Capacity 265 Matter Stores 300 Matter Capacity 300 Sight Range 16 Terrain Scan Range 14 Terrain Scan Density 10 Armor Coverage 225 Utility Shielding 33 Evasion (%) 55 Item Schematics ----------------- None Robot Schematics ------------------ None Fabricated ------------ Nothing Repaired ---------- Particle Cannon | 43% | -9/Materials Studied --------- None Alien Tech Used ----------------- None Achievements -------------- First Step to Greatness Part-time Mechanic Risk Taker Storm Trooper There's More Where That Came From Uninvited Guest Challenges ------------ None Game ------ Seed SurveybotRagnarokRipper Manual? 0 Play Time 00:48:34 Cumulative 0.7 hours Start 2026.08.05 @ 01:29:23 End 2026.08.06 @ 15:15:06 Sessions 3 Manual Loads 0 Difficulty Rogue Special Mode None Game No. 1 Rogue 1 Adventurer 0 Explorer 0 Win Type - Total 0 Types 0/0/0/0/0/0/0/0/0/0 Lore% 0 Gallery% 1 Achievement% 1 Wizard Run 0 Options --------- Layout 0 ASCII 0 Keyboard 0 Movement Mouse Keybinds 0 Fullscreen 2 Font 18/SmallcapsGlow Map View 76x50 Zoom Use 0% Tactical HUD 1 Map Filters NONE Filters NONE Steam 1 RUN: 201edd74-50e9-47f0-9b17-c4a4f5cc5898